Cogmind - Beta 14 @@@ ROGUE MODE // 2024.09.23 @ 12:28:14 Player: Kinga Result: Self-destructed Performance ------------- Evolutions (1) 500 Regions Visited (5) 1000 Robots Destroyed (47) 235 Value Destroyed (1149) 1149 Prototype IDs (4) 80 Alien Tech Used (0) 0 Bonus (132) 132 TOTAL SCORE: 3096 Bonus ------- High Alert Combat Kills 81 Follower Combat Kills 177 Friendly Fire -126 Cogmind --------- Core Integrity 97/400 Matter 300/300 Energy 86/100 System Corruption 0% Temperature Warning (342) Movement Core (100) Ox1 Location -9/Scraptown Parts ------- > --- POWER (1) -------- (None) > --- PROPULSION (4) --- (None) > --- UTILITY (2) ------ Small Storage Unit Hacking Suite > --- WEAPON (2) ------- (None) > --- INVENTORY (8) ---- VTOL Module Medium Storage Unit Advanced Beam Cannon Advanced Beam Cannon Advanced Beam Cannon Mini Grenade Launcher Plasma Cutter Peak State ------------ > --- POWER ------------ Backup Power III > --- PROPULSION ------- Light Treads Light Treads Light Treads Light Treads > --- UTILITY ---------- Small Storage Unit Hacking Suite > --- WEAPON ----------- Advanced Beam Cannon Advanced Beam Cannon > --- INVENTORY -------- VTOL Module Medium Storage Unit Advanced Beam Cannon Advanced Beam Cannon Advanced Beam Cannon Advanced Beam Cannon Mini Grenade Launcher Plasma Cutter [Rating: 18] Favorites ----------- Power Light Ion Engine Engine Light Ion Engine Propulsion Light Treads Treads Light Treads Wheel Wheel Flight Unit Flight Unit Utility Small Storage Unit Storage Small Storage Unit Hackware Hacking Suite Protection Improved Light Armor Plating Weapon Flak Cannon Energy Gun Beam Rifle Energy Cannon Advanced Beam Cannon Ballistic Gun Light Assault Rifle Ballistic Cannon Flak Cannon Launcher Mini Grenade Launcher Build | -11 -10 -9 -9 -9 -9 ------- Run | Yrd Mat Mat Sto Rec Scr Slots Evolved 2 | . . 2 . . . Power . | . . . . . . Propulsion 2 | . . 2 . . . Utility . | . . . . . . Weapon . | . . . . . . Parts Attached 39 | 7 . 23 6 2 1 Power 6 | 1 . 4 1 . . Engine 6 | 1 . 4 1 . . Core . | . . . . . . Reactor . | . . . . . . Propulsion 15 | 2 . 11 . 2 . Treads 8 | 2 . 4 . 2 . Leg . | . . . . . . Wheel 1 | . . 1 . . . Hover . | . . . . . . Flight 6 | . . 6 . . . Utility 4 | 1 . 2 1 . . Device . | . . . . . . Storage 1 | 1 . . . . . Processor . | . . . . . . Hackware 1 | . . . 1 . . Protection 2 | . . 2 . . . Artifact . | . . . . . . Weapon 14 | 3 . 6 4 . 1 Energy Gun 3 | 1 . 2 . . . Energy Cannon 3 | . . . 2 . 1 Ballistic Gun 4 | 2 . 2 . . . Ballistic Cannon 3 | . . 2 1 . . Launcher 1 | . . . 1 . . Special Weapon . | . . . . . . Impact Weapon . | . . . . . . Slashing Weapon . | . . . . . . Piercing Weapon . | . . . . . . Special Melee Weapon . | . . . . . . Unidentified Prototypes 2 | . . 1 1 . . Parts Lost 15 | . . 3 5 . 7 Power 4 | . . 1 2 . 1 Propulsion 7 | . . 1 2 . 4 Utility 1 | . . 1 . . . Weapon 3 | . . . 1 . 2 Highest Loss Streak 7 | . . 1 1 . 7 To Critical Strikes . | . . . . . . Average Slot Usage (%) 90 | . 85 91 86 97 100 Engine 10 | . 14 10 9 11 11 Treads 32 | . 28 26 33 41 44 Flight 3 | . . 8 . . . Storage 11 | . 14 11 11 11 11 Hackware 6 | . . . 10 11 11 Protection 4 | . . 10 . . . Energy Gun 2 | . . . 5 . . Energy Cannon 5 | . . . 3 22 22 Ballistic Gun 3 | . 28 5 . . . Ballistic Cannon 7 | . . 15 4 . . Launcher 3 | . . . 8 . . Peak Build Rating 18 | 6 6 16 16 18 18 Average Rating 13 | 4 6 13 13 17 17 On Entrance 9 | . 6 6 12 16 18 Naked Turns . | . . . . . . Heaviest Build 25 | 10 10 25 17 15 15 Greatest Support 80 | 40 40 80 80 80 80 Greatest Overweight (x) 2 | . . 2 . . . Average Overweight (x) . | . . . . . . Largest Inventory Capacity 8 | 8 8 8 8 8 8 Average Capacity 7 | 6 8 8 8 8 8 Most Carried 8 | 3 7 8 8 8 8 Average Carried 7 | 1 4 7 7 8 7 Final Capacity 8 | 8 8 8 8 8 8 Final Carried 8 | 3 7 8 8 8 7 Class Distribution -------------------- 71% | Mutant 25% | Commander-Mutant Dominant Class ---------------- Mutant | -10/Materials Mutant | -9/Materials Mutant | -9/Storage Commander-Mutant | -9/Recycling Commander-Mutant | -9/Scraptown Resources | -11 -10 -9 -9 -9 -9 ----------- Run | Yrd Mat Mat Sto Rec Scr Matter Collected 1376 | 197 17 631 402 99 30 Remotely . | . . . . . . Salvage Created 1286 | . 48 766 472 . . Parts 73 | . 7 44 22 . . Haulers Intercepted 4 | . . 2 2 . . Recyclers Shooed 3 | . . 1 1 1 . Parts Field Recycled . | . . . . . . Retrieved Matter . | . . . . . . Parts Self-Destructed . | . . . . . . Prevented . | . . . . . . Kills | -11 -10 -9 -9 -9 -9 ------- Run | Yrd Mat Mat Sto Rec Scr Combat Hostiles Destroyed 32 | . 3 20 9 . . Melee 1 | . . 1 . . . Guns 7 | . 3 3 1 . . Cannons 21 | . . 16 5 . . AOE 2 | . . . 2 . . Classes Destroyed 8 | . 1 7 . . . Builder 1 | . . 1 . . . Hauler 4 | . . 2 2 . . Recycler 5 | . . 3 2 . . Operator 1 | . . 1 . . . Watcher 4 | . . 3 1 . . Swarmer 10 | . 3 7 . . . Grunt 13 | . . 8 5 . . Sentry 9 | . . 5 4 . . Best Kill Streak 10 | . 3 10 3 . . Combat Bots Only 6 | . 3 6 3 . . Max Kills in Single Turn 1 | . 1 1 1 . . Gunslinging . | . . . . . . Exploded 1 | . . . 1 . . Melee 1 | . . 1 . . . Uniques/NPCs Destroyed . | . . . . . . Combat | -11 -10 -9 -9 -9 -9 -------- Run | Yrd Mat Mat Sto Rec Scr Hostile Shots Fired 219 | . 14 130 49 . 26 Missed 71 | . 3 47 15 . 6 Damage Taken 2341 | . 80 1013 565 18 665 Core 323 | . 20 135 141 . 27 Absorbed by Shields . | . . . . . . Redirected to Shielding 16 | . . 16 . . . Core Remaining (%) 96 | 100 92 . . . . Volleys Fired 154 | . 5 74 70 1 4 Largest 2 | . 2 2 2 2 2 Hottest 136 | . 40 88 136 136 136 Shots Fired 247 | . 10 148 79 2 8 Gun 96 | . 10 54 32 . . Cannon 144 | . . 94 40 2 8 Launcher 7 | . . . 7 . . Special . | . . . . . . Kinetic 186 | . 10 148 28 . . Thermal 54 | . . . 44 2 8 Explosive 7 | . . . 7 . . Electromagnetic . | . . . . . . Robot Hit Streak 12 | . 2 12 9 2 5 Robot Miss Streak 15 | . 2 15 5 1 1 Penetration Max . | . . . . . . Secondary Targets . | . . . . . . Shots Hit Robots 179 | . 5 110 56 1 7 Core Hits 127 | . 3 82 40 . 2 Critical Kills . | . . . . . . Critical Parts Destroyed . | . . . . . . Critical Strikes 2 | . . . 2 . . Burn 2 | . . . 2 . . Melee Attacks . | . . . . . . Impact . | . . . . . . Slashing . | . . . . . . Piercing . | . . . . . . Sneak Attacks . | . . . . . . Combat Hostiles . | . . . . . . Follow-up Attacks . | . . . . . . Damage Inflicted 2989 | . 45 1466 1290 22 166 Guns 642 | . 45 266 331 . . Cannons 2037 | . . 1197 653 21 166 Explosions 303 | . . . 303 . . Melee . | . . . . . . Ramming 7 | . . 3 3 1 . Kinetic 2059 | . 45 1463 551 . . Thermal 620 | . . . 433 21 166 Explosive 303 | . . . 303 . . Electromagnetic . | . . . . . . Impact . | . . . . . . Slashing . | . . . . . . Piercing . | . . . . . . Highest Corruption . | . . . . . . Average Corruption . | . . . . . . Corruption Purged . | . . . . . . Corruption Blocked . | . . . . . . Overload Shots . | . . . . . . Overflow Damage 20 | . . . 20 . . Projectiles . | . . . . . . Explosions 20 | . . . 20 . . Melee . | . . . . . . Knockbacks 35 | . . 27 8 . . Impact . | . . . . . . Kinetic 27 | . . 20 7 . . Secondary 8 | . . 7 1 . . Self-Inflicted Damage 76 | . . . 76 . . Shots 2 | . . . 2 . . Rammed 5 | . . 3 1 1 . Targets Rammed 6 | . . 4 1 1 . Kicked . | . . . . . . Crushed 1 | . . 1 . . . Highest Temperature 293 | . . 254 247 63 293 Average Temperature 60 | . . 61 51 37 153 Received Heat Transfer 707 | . . 366 219 . 122 Siege Activations . | . . . . . . Robots Corrupted . | . . . . . . Combat Hostiles . | . . . . . . Parts Fried . | . . . . . . Impact Corruptions . | . . . . . . Robots Melted 1 | . . . 1 . . Combat Hostiles 1 | . . . 1 . . Parts Melted 4 | . . . 4 . . Heat Transferred 1517 | . . . 1184 37 296 Parts Sabotaged . | . . . . . . Parts Stolen 1 | . . . . . 1 Parts Stripped . | . . . . . . Power Chain Reactions . | . . . . . . Alert | -11 -10 -9 -9 -9 -9 ------- Run | Yrd Mat Mat Sto Rec Scr Peak Influence 576 | . 85 576 497 207 . Initial 221 | . . 35 221 145 . Average 319 | . 38 388 339 199 . Maximum Alert Level 2 | . . 2 2 1 . Low Security (%) 12 | 100 100 8 . 11 . Level 1 59 | . . 38 86 88 . Level 2 27 | . . 53 13 . . Level 3 . | . . . . . . Level 4 . | . . . . . . Level 5 . | . . . . . . High Security . | . . . . . . Max Security . | . . . . . . Squads Dispatched 3 | . . 2 1 . . Investigation . | . . . . . . Extermination . | . . . . . . Reinforcement 2 | . . 1 1 . . Assault 1 | . . 1 . . . Garrison . | . . . . . . Intercept . | . . . . . . Searches Triggered . | . . . . . . Construction Impeded . | . . . . . . Haulers Reinforced . | . . . . . . Active Scanning Responses . | . . . . . . Cargo Convoy Interrupts . | . . . . . . Stealth | -11 -10 -9 -9 -9 -9 --------- Run | Yrd Mat Mat Sto Rec Scr Distress Signals 6 | . 1 5 . . . Communications Jammed . | . . . . . . Distress Signals . | . . . . . . Times Spotted 77 | . 5 42 17 2 11 Peak Tracking Total 11 | . 5 7 5 2 11 Tactical Retreats 5 | . . 4 1 . . Traps | -11 -10 -9 -9 -9 -9 ------- Run | Yrd Mat Mat Sto Rec Scr Traps Triggered 1 | . . 1 . . . Indirectly . | . . . . . . Trap Hack Attempts . | . . . . . . Triggered . | . . . . . . Disarmed . | . . . . . . Reprogrammed . | . . . . . . Reused . | . . . . . . Traps Extracted . | . . . . . . Installed . | . . . . . . Triggered . | . . . . . . Machines | -11 -10 -9 -9 -9 -9 ---------- Run | Yrd Mat Mat Sto Rec Scr Machines Disabled 4 | . . . 4 . . Max in Single Turn 1 | . . . 1 . . Machines Repaired . | . . . . . . Machines Dismantled . | . . . . . . Machines Sabotaged . | . . . . . . Overloaded Fab Kills . | . . . . . . Hacking | -11 -10 -9 -9 -9 -9 --------- Run | Yrd Mat Mat Sto Rec Scr Machines Accessed 11 | . 1 3 5 2 . Terminals 9 | . 1 3 3 2 . Fabricators . | . . . . . . Repair Stations 2 | . . . 2 . . Recycling Units . | . . . . . . Scanalyzers . | . . . . . . Garrison Access . | . . . . . . Total Hacks 28 | . 2 5 18 3 . Successful 11 | . . 3 6 2 . Failed 17 | . 2 2 12 1 . Catastrophic 1 | . 1 . . . . Database Lockouts . | . . . . . . Manual 12 | . 2 2 6 2 . Terminals 23 | . 2 5 13 3 . Fabricators . | . . . . . . Repair Stations 5 | . . . 5 . . Recycling Units . | . . . . . . Scanalyzers . | . . . . . . Garrison Access . | . . . . . . Terminal Hacks 10 | . . 3 5 2 . Prototype ID Bank 1 | . . . 1 . . Alert Level 1 | . . . 1 . . Unreport Threat 1 | . . . 1 . . Transport Status 1 | . . 1 . . . Recall Assault 1 | . . . 1 . . Hauler Manifests 1 | . . 1 . . . Registered Components 1 | . . . 1 . . Zone Layout 3 | . . 1 . 2 . Fabricator Hacks . | . . . . . . Repair Station Hacks 1 | . . . 1 . . Refit 1 | . . . 1 . . Recycling Unit Hacks . | . . . . . . Scanalyzer . | . . . . . . Garrison Access Hacks . | . . . . . . Unauthorized Hacks . | . . . . . . Terminals . | . . . . . . Fabricators . | . . . . . . Repair Stations . | . . . . . . Recycling Units . | . . . . . . Scanalyzers . | . . . . . . Garrison Access . | . . . . . . Data Cores Recovered . | . . . . . . Used . | . . . . . . Hacking Detections 7 | . 1 1 5 . . Full Trace Events . | . . . . . . Feedback Events . | . . . . . . Feedback Blocked . | . . . . . . Robot Schematics Acquired . | . . . . . . Robots Built . | . . . . . . Authchips . | . . . . . . Time . | . . . . . . Total Robot Build Rating . | . . . . . . Part Schematics Acquired . | . . . . . . Parts Built . | . . . . . . Authchips . | . . . . . . Time . | . . . . . . Total Part Build Rating . | . . . . . . Parts Repaired . | . . . . . . Time . | . . . . . . Parts Recycled . | . . . . . . Recycled Matter . | . . . . . . Retrieved Matter . | . . . . . . Retrieved Components . | . . . . . . Parts Scanalyzed . | . . . . . . Part Schematics Acquired . | . . . . . . Parts Damaged . | . . . . . . Bothacking | -11 -10 -9 -9 -9 -9 ------------ Run | Yrd Mat Mat Sto Rec Scr Used RIF Installer . | . . . . . . Robots Hacked . | . . . . . . Non-combat . | . . . . . . Combat . | . . . . . . Robot Hacks Applied . | . . . . . . Relay Couplers Released . | . . . . . . Fabnet Peak Effective % . | . . . . . . Robots Rewired . | . . . . . . Allies Hacked . | . . . . . . Hacks Repelled . | . . . . . . Allies | -11 -10 -9 -9 -9 -9 -------- Run | Yrd Mat Mat Sto Rec Scr Total Allies 10 | . . . 10 . . Largest Group 10 | . . . 10 8 8 Highest-Rated Group 88 | . . . 88 72 72 Highest-Rated Ally 16 | . . . 16 16 16 Total Orders . | . . . . . . Ally Attacks 59 | . . . 22 18 19 Total Damage 529 | . . . 185 186 158 Kills 9 | . . . 6 2 1 Allies Corrupted . | . . . . . . Allies Melted . | . . . . . . Intel | -11 -10 -9 -9 -9 -9 ------- Run | Yrd Mat Mat Sto Rec Scr Robot Analysis Total . | . . . . . . Derelict Logs Recovered . | . . . . . . Drone Launches . | . . . . . . Drone Recoveries . | . . . . . . Exploration | -11 -10 -9 -9 -9 -9 ------------- Run | Yrd Mat Mat Sto Rec Scr Turns Passed 2374 | 79 97 897 883 227 191 Spaces Moved 1464 | 44 51 685 447 126 111 Core 3 | 3 . . . . . Treads 1064 | 41 51 288 447 126 111 Legs . | . . . . . . Wheels 43 | . . 43 . . . Hover . | . . . . . . Flight 354 | . . 354 . . . Fastest Speed 31 | 50 160 31 160 160 160 Average Speed 127 | 152 160 91 160 160 160 Slowest Speed 240 | 160 160 240 160 160 160 Overloaded Moves . | . . . . . . Propulsion Burnouts . | . . . . . . Robots Hopped 5 | . . 5 . . . Cave-ins Triggered . | . . . . . . Exploration Rate (%) 32 | 4 21 66 48 37 16 Regions Visited 5 Branch Regions 3 Pre-discovered Areas . | . . . . . . Known Exits Taken . | . . . . . . Unknown Exits Taken 5 | 1 1 1 1 1 . Scrap Searched 1 | . . . . . 1 Spaces Dug 11 | . . . 11 . . Terrain Destroyed 51 | . . . 51 . . Melee . | . . . . . . Projectile . | . . . . . . AOE 51 | . . . 51 . . Terrain Rammed . | . . . . . . Walls Destroyed . | . . . . . . Machines Disabled . | . . . . . . Actions | -11 -10 -9 -9 -9 -9 --------- Run | Yrd Mat Mat Sto Rec Scr Total 1729 | 53 59 816 537 148 116 Wait 24 | . . 5 . 19 . Move 1449 | 43 50 674 446 125 111 Hop 5 | . . 5 . . . Pick Up 22 | 3 4 9 6 . . Fast Attach 27 | 6 . 16 3 2 . Attach 9 | . . 6 2 . 1 Detach 5 | . . 4 1 . . Swap 3 | 1 . 1 1 . . Drop 24 | . . 18 6 . . Fire 154 | . 5 74 70 1 4 Melee . | . . . . . . Ram . | . . . . . . Kick . | . . . . . . Crush 6 | . . 4 1 1 . Escape Stasis . | . . . . . . Rewire 1 | . . . 1 . . Trap . | . . . . . . Miscellaneous . | . . . . . . Route ------- -11/Scrapyard -10/Materials (discovered 2 exits: *Mat / [*Min]) -9/Materials (discovered 2 exits: [*Mat] / *Sto) -9/Storage -9/Recycling -9/Scraptown History --------- Turn | Location | Event 9 | -11/Scrapyard | Discovered new exit (range 15) 80 | -11/Scrapyard | Entered Materials 106 | -10/Materials | Discovered new exit (range 15) 174 | -10/Materials | Discovered new exit (range 3) 177 | -10/Materials | Entered another Materials area 177 | -9/Materials | Evolved 2 slots: Propulsion x2 186 | -9/Materials | Discovered new exit (range 15) 257 | -9/Materials | Discovered new exit (range 10) 554 | -9/Materials | Build established: Mutant 977 | -9/Materials | First assault squad dispatched 1074 | -9/Materials | Entered Storage 1523 | -9/Storage | Core integrity fell below 50% 1764 | -9/Storage | Assisted by bots powering up and referring to "LRC-V3" 1808 | -9/Storage | Used back door to open Recycling access 1808 | -9/Storage | Discovered new exit (range 5) 1957 | -9/Storage | Entered Recycling 1957 | -9/Recycling | Accompanied by 8 allies 2047 | -9/Recycling | Build established: Commander-Mutant 2125 | -9/Recycling | Scanned before Scraplab entrance 2149 | -9/Recycling | Entered Scraplab 2181 | -9/Recycling | Discovered new exit (range 2) 2184 | -9/Recycling | Entered Scraptown 2184 | -9/Scraptown | Accompanied by 8 allies 2363 | -9/Scraptown | Attacked by Scraptown defenders 2375 | -9/Scraptown | Self-destructed Last Messages --------------- 02370_ Lgt. Treads destroyed. 02370_ Adv. Beam Cannon destroyed. 02370_ I1-JV2(j) destroyed. 02370_ Lgt. Treads destroyed. 02370_ Critical hit (Burn: +50). 02372_ Penetrated by Bolt. 02372_ Penetrated by Siege Slug. 02372_ Siege Slug penetrates RD-HTU(g). 02372_ RD-HTU(g) suffers critical hit (Blast). 02372_ RD-HTU(g) destroyed. 02373_ Adv. Beam Cannon ripped off. 02373_ Backup Power III destroyed. 02374_ 5R-NMQ(r) follow-up attacks with Ripteeth. 02374_ Penetrated by Siege Slug. 02374_ Lgt. Treads destroyed. 02374_ Siege Slug penetrates Wall. 02374_ Penetrated by Bolt. 02374_ Lgt. Treads destroyed. 02375_ Adv. Beam Cannon destroyed. 02375_ Critical hit (Burn: +50). Map ----- +----------------------------------------------------+ | ?????????????????????????????????????????????????? | | ?????????????????????????????????????????????????? | | ?????????????????????????????????????????????????? | | ?????????????????????????????????????????????????? | | ?????????????????????????????????????????????????? | | ?????????????????????????????????????????????????? | | ?????????????????????????????????????????????????? | | ????????????????????? ???????????????????????? | | ????????????????????# ?????????????????????? | | ????????????????????# #??????????????????? | | ????????????????????# #??????????????????? | | ????????????????????# #??????????????????? | | ????????????????????# #??????????????????? | | ????????????????????# ##?????????????????? | | ????????????????????# ""?????????????????? | | ????????????????????# """????????????????? | | ????????????????????# ""?????????????????? | | ????????????????????# #??????????????????? | | ????????????????????# h #####??????????????? | | ????????????????????# = "??????????????? | | ????????????????????# *% "??????????????? | | ????????????????????# %/[ j "??????????????? | | ????????????????????# =%* "??????????????? | | ??????????########### =!%TT "??????????????? | | ???????? [%xrTT "??????????????? | | ???????? %r@= "??????????????? | | ???????? ==*%! "??????????????? | | ???????? "??????????????? | | ????????? j "??????????????? | | ????????? g #"??????????????? | | ?????????? !* #???????????????? | | ?????????? j%%* #???????????????? | | ??????????###### #%######## ####???????????????? | | ???????????????# % ???????# #??????????????????? | | ???????????????# ????????# #??????????????????? | | ??????????????? ?????????# #??????????????????? | | ??????????????;#??????????# #??????????????????? | | ??????????????????????????# #??????????????????? | | ??????????????????????????# #??????????????????? | | ??????????????????????????# #??????????????????? | | ??????????????????????????# #??????????????????? | | ??????????????????????????# #??????????????????? | | ??????????????????????????# #??????????????????? | | ??????????????????????????# #??????????????????? | | ???????????????????######## #??????????????????? | | ???????????????????"""""""" #??????????????????? | | ??????????????????""" """"" #??????????????????? | | ??????????##?????""" " "" #??????????????????? | | ?????????? #??????????????????? | | ??##?????? #???#"" "" "" " #??????????????????? | +----------------------------------------------------+ Best States ------------- Heat Dissipation 28 Energy Generation 11 Energy Capacity 250 Matter Stores 300 Matter Capacity 300 Sight Range 16 Terrain Scan Density 10 Armor Coverage 150 Propulsion Shielding 33 Evasion (%) 63 Recoil Reduction 4 Offensive Hacking 10 Item Schematics ----------------- None Robot Schematics ------------------ None Fabricated ------------ Nothing Alien Tech Used ----------------- None Achievements -------------- None Challenges ------------ None Game ------ Seed MicrowarpGrenadeCompressor Manual? 0 Play Time 00:19:12 Cumulative 89.1 hours Start 2024.09.23 @ 12:10:55 End 2024.09.23 @ 12:28:14 Sessions 1 Manual Loads 0 Difficulty Rogue Special Mode None Game No. 102 Rogue 98 Adventurer 0 Explorer 4 Win Type - Total 6 Types 4/0/0/2/0/0/0/0/0 Lore% 39 Gallery% 61 Achievement% 55 Wizard Run 0 Options --------- Layout 0 ASCII 0 Keyboard 0 Movement Numpad Keybinds 0 Fullscreen 2 Font 18/SmallcapsGlow Map View 76x50 Zoom Use 0% Tactical HUD 1 Map Filters NONE Filters NONE Steam 1 RUN: f58ff5bf-6198-4e92-9430-a763802c384e